bitfinex/quotes_BTCUSD_20240701
["timestamp","ask_amount","ask_price","bid_price","bid_amount"]
[1719825345737,3.85864664,62962.0,62961.0,0.0033915]
[1719825346402,3.85864892,62962.0,62961.0,0.0033915]
[1719825347533,3.9287347,62962.0,62961.0,0.0033915]
[1719825349399,3.9287347,62962.0,62961.0,5e-07]
[1719825349617,3.92922435,62962.0,62961.0,5e-07]
[1719825350860,3.92922435,62962.0,62945.0,0.08910803]
[1719825350861,1.70408317,62946.0,62945.0,0.00670803]
[1719825351064,2.23734411,62946.0,62945.0,0.00670803]
[1719825351263,2.28308849,62946.0,62945.0,0.00670803]
[1719825352269,2.28308849,62946.0,62945.0,0.00870803]
[1719825352497,2.80082049,62946.0,62945.0,0.00870803]
[1719825352864,3.12646441,62946.0,62945.0,0.00870803]
[1719825353082,3.43826957,62946.0,62945.0,0.00870803]
[1719825353284,3.3656737,62946.0,62945.0,0.00870803]
[1719825353573,3.50939379,62946.0,62945.0,0.00870803]
[1719825353756,3.50939379,62946.0,62945.0,0.00670803]
[1719825354399,3.50929379,62946.0,62945.0,0.00670803]
[1719825354571,3.50939379,62946.0,62945.0,0.00770803]
[1719825354771,3.51149379,62946.0,62945.0,0.00770803]
[1719825354971,3.47056886,62946.0,62945.0,0.00670803]
[1719825355202,3.50949393,62946.0,62945.0,0.00670803]
[1719825355318,3.52349393,62946.0,62945.0,0.00670803]
[1719825355518,3.53749393,62946.0,62945.0,0.00680803]
[1719825355938,3.46653506,62946.0,62945.0,0.00680803]
[1719825356152,3.46654097,62946.0,62945.0,0.00680803]
[1719825357575,3.78427297,62946.0,62945.0,0.00680803]
[1719825358115,3.78427297,62946.0,62945.0,0.00690803]
[1719825359127,3.78423147,62946.0,62945.0,0.00690803]
[1719825361571,2.94877384,62946.0,62945.0,0.00690803]
[1719825361776,3.09391678,62946.0,62945.0,0.00690803]
[1719825364506,3.11553472,62946.0,62945.0,0.00690803]
[1719825364791,3.1152261,62946.0,62945.0,0.00690803]
[1719825364901,3.11523001,62946.0,62945.0,0.00690803]
[1719825365114,3.09050427,62946.0,62945.0,0.00690803]
[1719825365316,3.11522931,62946.0,62945.0,0.00690803]
[1719825365523,3.11522931,62946.0,62945.0,0.20200803]
[1719825365524,2.49229731,62946.0,62945.0,0.20200803]
[1719825365719,2.50229731,62946.0,62945.0,0.20200803]
[1719825366007,2.57449731,62946.0,62945.0,0.20200803]
[1719825366132,2.49811383,62946.0,62945.0,0.20200803]
[1719825366354,2.53353375,62946.0,62945.0,0.20200803]
[1719825366697,2.53353375,62946.0,62945.0,0.00690803]
[1719825367348,2.51953375,62946.0,62945.0,0.00690803]
[1719825367548,2.59719275,62946.0,62945.0,0.00690803]
[1719825367772,3.17885573,62946.0,62945.0,0.00690803]
[1719825367976,2.84712373,62946.0,62945.0,0.00690803]
[1719825368090,2.83312373,62946.0,62945.0,0.00690803]
[1719825368291,2.66112373,62946.0,62945.0,0.00690803]
[1719825368530,2.54192373,62946.0,62945.0,0.19420803]
[1719825368732,2.60012373,62946.0,62945.0,0.19420803]
[1719825368929,2.57319275,62946.0,62945.0,0.19420803]
[1719825369132,2.58719275,62946.0,62945.0,0.19420803]
[1719825369361,2.62812898,62946.0,62945.0,0.19420803]
[1719825369563,2.41412898,62946.0,62945.0,0.19420803]
[1719825369772,2.61412898,62946.0,62945.0,0.19420803]
[1719825370185,2.41412898,62946.0,62945.0,0.19420803]
[1719825370363,2.60012898,62946.0,62945.0,0.19420803]
[1719825370566,2.49553375,62946.0,62945.0,0.19420803]
[1719825370768,2.40191383,62946.0,62945.0,0.19420803]
[1719825370953,2.44893471,62946.0,62945.0,0.19420803]
[1719825371137,2.47171489,62946.0,62945.0,0.19420803]
[1719825371337,2.45971489,62946.0,62945.0,0.19420803]
[1719825371664,2.47571489,62946.0,62945.0,0.19420803]
[1719825372271,2.23218118,62946.0,62945.0,0.19420803]
[1719825372433,1.69283124,62946.0,62945.0,0.19420803]
[1719825373486,1.76503124,62946.0,62945.0,0.19420803]
[1719825373690,1.77403124,62946.0,62945.0,0.19420803]
[1719825373892,1.77485635,62946.0,62945.0,0.19420803]
[1719825374095,1.92819006,62946.0,62945.0,0.19420803]
[1719825374265,1.92819107,62946.0,62945.0,0.19420803]
[1719825374665,1.93719107,62946.0,62945.0,0.19420803]
[1719825375076,1.94803107,62946.0,62945.0,0.19420803]
[1719825375465,1.93803107,62946.0,62945.0,0.19420803]
[1719825376626,1.86583107,62946.0,62945.0,0.19420803]
[1719825376808,1.93803107,62946.0,62945.0,0.19420803]
[1719825377464,1.53561667,62946.0,62945.0,0.19420803]
[1719825377671,1.34122199,62946.0,62945.0,0.19420803]
[1719825377878,1.34815906,62946.0,62945.0,0.19420803]
[1719825378090,1.36072086,62946.0,62945.0,0.19420803]
[1719825378505,1.34122086,62946.0,62945.0,0.19420803]
[1719825378728,1.38656704,62946.0,62945.0,0.19420803]
[1719825378901,1.67845286,62946.0,62945.0,0.19420803]
[1719825380229,1.19838188,62946.0,62945.0,0.19420803]
[1719825380442,1.18582008,62946.0,62945.0,0.19420803]
[1719825380650,1.19833398,62946.0,62945.0,0.19420803]
[1719825386975,1.19835952,62946.0,62945.0,0.19420803]
[1719825388331,1.51609152,62946.0,62945.0,0.19420803]
[1719825390019,1.50355208,62946.0,62945.0,0.19420803]
[1719825390222,1.51608429,62946.0,62945.0,0.19420803]
[1719825390657,1.51608407,62946.0,62945.0,0.19420803]
[1719825391019,1.17885207,62946.0,62945.0,0.19420803]
[1719825391221,1.48986317,62946.0,62945.0,0.00690803]
[1719825391422,1.90535673,62946.0,62945.0,0.00690803]
[1719825391623,1.83315673,62946.0,62945.0,0.00690803]
[1719825391854,1.83315673,62946.0,62945.0,0.19810803]
[1719825391855,1.70398461,62946.0,62945.0,0.19810803]
[1719825392377,1.36069105,62946.0,62945.0,0.19810803]
[1719825392654,1.38680841,62946.0,62945.0,0.19810803]
[1719825392855,1.67842305,62946.0,62945.0,0.19810803]
[1719825393287,1.67859129,62946.0,62945.0,0.19810803]
[1719825393413,1.36085929,62946.0,62945.0,0.19810803]
[1719825393617,1.36857238,62946.0,62945.0,0.19810803]
[1719825393832,1.36857238,62946.0,62945.0,0.00690803]
[1719825393833,2.33953119,62946.0,62945.0,0.00690803]
[1719825394088,2.34953119,62946.0,62945.0,0.00690803]
[1719825395053,2.73953119,62946.0,62945.0,0.00690803]
[1719825395863,3.05726319,62946.0,62945.0,0.00690803]
[1719825396066,3.10404238,62946.0,62945.0,0.00690803]
[1719825396463,3.10510346,62946.0,62945.0,0.00690803]
[1719825396709,3.29610346,62946.0,62945.0,0.00690803]
[1719825396916,3.81383546,62946.0,62945.0,0.00690803]
[1719825397121,3.92474085,62946.0,62945.0,0.00690803]
[1719825397562,3.90374085,62946.0,62945.0,0.00690803]
[1719825397994,3.93174085,62946.0,62945.0,0.00690803]
[1719825398171,3.91774085,62946.0,62945.0,0.00690803]
[1719825398665,3.93174085,62946.0,62945.0,0.00690803]
[1719825399057,3.91774085,62946.0,62945.0,0.00690803]
[1719825399434,3.9546326,62946.0,62945.0,0.00690803]
[1719825399630,3.96957269,62946.0,62945.0,0.00690803]
[1719825399840,4.02007211,62946.0,62945.0,0.00690803]
[1719825400062,4.03407211,62946.0,62945.0,0.00690803]
[1719825400409,4.35180411,62946.0,62945.0,0.00690803]
[1719825402318,4.25031715,62946.0,62945.0,0.00690803]
[1719825402455,4.20172255,62946.0,62945.0,0.00690803]
[1719825402652,4.35148789,62946.0,62945.0,0.00690803]
[1719825405533,4.51092133,62946.0,62945.0,0.00690803]
[1719825405709,4.20172255,62946.0,62945.0,0.00690803]
[1719825405861,4.65095222,62946.0,62945.0,0.00690803]
[1719825406615,5.51035213,62946.0,62945.0,0.00690803]
[1719825409186,5.51041103,62946.0,62945.0,0.00690803]
[1719825409398,5.46182995,62946.0,62945.0,0.00690803]
[1719825409549,5.35108635,62946.0,62945.0,0.00690803]
[1719825412197,5.20110955,62946.0,62945.0,0.00690803]
[1719825412539,4.65109277,62946.0,62945.0,0.00690803]
[1719825414140,4.35170577,62946.0,62945.0,0.00690803]
[1719825414347,5.09752177,62946.0,62945.0,0.00690803]
[1719825415389,5.79752177,62946.0,62945.0,0.00690803]
[1719825415563,5.79749859,62946.0,62945.0,0.00690803]
[1719825416733,5.72529859,62946.0,62945.0,0.00690803]
[1719825416931,5.50711959,62946.0,62945.0,0.00690803]
[1719825418522,5.35715955,62946.0,62945.0,0.00690803]
[1719825418728,5.49491258,62946.0,62945.0,0.00690803]
[1719825419129,5.49511396,62946.0,62945.0,0.00690803]
[1719825419635,5.42175296,62946.0,62945.0,0.00690803]
[1719825420773,5.14955296,62946.0,62945.0,0.00690803]
[1719825420977,5.42175296,62946.0,62945.0,0.00690803]
[1719825421175,5.42120055,62946.0,62945.0,0.00690803]
[1719825421577,5.37261708,62946.0,62945.0,0.00690803]
[1719825421809,5.42120056,62946.0,62945.0,0.00690803]
[1719825422694,5.37071072,62946.0,62945.0,0.00690803]
[1719825423118,5.87071072,62946.0,62945.0,0.00690803]
[1719825424178,5.78189218,62946.0,62945.0,0.00690803]
[1719825424385,5.86827393,62946.0,62945.0,0.00690803]
[1719825425251,5.96380393,62946.0,62945.0,0.00690803]
[1719825425956,5.26380393,62946.0,62945.0,0.00690803]
[1719825426103,5.86808777,62946.0,62945.0,0.00690803]
[1719825426464,5.74442077,62946.0,62945.0,0.00690803]
[1719825427365,2.62174017,62938.0,62937.0,0.009251]
[1719825427676,3.13892875,62938.0,62937.0,0.009251]
[1719825427933,3.13882875,62938.0,62937.0,0.009251]
[1719825428152,3.2803228,62938.0,62937.0,0.009251]
[1719825428481,3.34010199,62938.0,62937.0,0.009251]
[1719825429027,3.40671644,62938.0,62937.0,0.009251]
[1719825429373,3.41771644,62938.0,62937.0,0.009251]
[1719825429575,3.27612239,62938.0,62937.0,0.009251]
[1719825430034,3.32846601,62938.0,62937.0,0.009251]
[1719825430253,3.32846601,62938.0,62937.0,0.009351]
[1719825430634,3.26178517,62938.0,62937.0,0.009351]
[1719825430838,3.26178517,62938.0,62937.0,1e-06]
[1719825430839,3.68929747,62938.0,62937.0,1e-06]
[1719825431042,3.49456568,62938.0,62937.0,1e-06]
[1719825431256,3.78092158,62938.0,62937.0,1e-06]
[1719825432866,4.09718758,62938.0,62937.0,1e-06]
[1719825433242,4.00558758,62938.0,62937.0,1e-06]
[1719825433718,3.91913168,62938.0,62937.0,1e-06]
[1719825433833,4.00570394,62938.0,62937.0,1e-06]
[1719825434038,3.91913168,62938.0,62937.0,1e-06]
[1719825434435,3.62370168,62938.0,62937.0,1e-06]
[1719825434708,3.38032568,62938.0,62937.0,0.187001]
[1719825434902,3.51907551,62938.0,62937.0,0.187001]
[1719825435272,3.5389518,62938.0,62937.0,0.187001]
[1719825435491,3.68066345,62938.0,62937.0,0.187001]
[1719825435917,3.70366345,62938.0,62937.0,0.187001]
[1719825436501,3.5619518,62938.0,62937.0,0.187001]
[1719825437743,3.7618518,62938.0,62937.0,0.187001]
[1719825437971,3.7618518,62938.0,62937.0,1e-06]
[1719825438150,3.84706601,62938.0,62937.0,1e-06]
[1719825438347,3.64646383,62938.0,62937.0,1e-06]
[1719825439106,3.64646383,62938.0,62937.0,0.000925]
[1719825440121,3.67462819,62938.0,62937.0,0.000925]
[1719825440529,3.83420159,62938.0,62937.0,0.000925]
[1719825440729,3.67462819,62938.0,62937.0,0.000925]
[1719825440958,3.18876519,62938.0,62937.0,0.187925]
[1719825441484,3.10304125,62938.0,62937.0,0.187925]
[1719825441681,3.18889782,62938.0,62937.0,0.187925]
[1719825442594,3.34871187,62938.0,62937.0,0.187925]
[1719825443183,2.53776046,62938.0,62937.0,0.187925]
[1719825443414,2.55207975,62938.0,62937.0,0.187925]
[1719825443615,1.25512535,62938.0,62937.0,0.187925]
[1719825443789,1.59229835,62938.0,62937.0,0.187925]
[1719825443964,1.57289835,62938.0,62937.0,0.187925]
[1719825444171,1.59229835,62938.0,62937.0,0.187925]
[1719825444908,1.59171936,62938.0,62937.0,0.187925]
[1719825445113,1.57273111,62938.0,62937.0,0.187925]
[1719825445343,2.17182274,62938.0,62937.0,0.187925]
[1719825445543,2.18182274,62938.0,62937.0,0.187925]
[1719825445742,2.17182274,62938.0,62937.0,0.187925]
[1719825446074,2.18182274,62938.0,62937.0,0.187925]
[1719825446498,2.18182274,62938.0,62937.0,0.000925]
[1719825446499,2.94056785,62938.0,62937.0,0.000925]
[1719825446703,3.16346785,62938.0,62937.0,0.000925]
[1719825446899,2.95056785,62938.0,62937.0,0.000925]
[1719825447145,3.02276785,62938.0,62937.0,0.000925]
[1719825447344,3.03576785,62938.0,62937.0,0.000925]
[1719825447761,3.02201264,62938.0,62937.0,0.000925]
[1719825448317,2.76281264,62938.0,62937.0,0.102325]
[1719825448487,2.76281264,62938.0,62937.0,0.190225]
[1719825448488,2.33190593,62938.0,62937.0,0.190225]
[1719825448885,2.47391445,62938.0,62937.0,0.190225]
[1719825449292,2.33190593,62938.0,62937.0,0.190225]
[1719825450603,2.29093382,62938.0,62937.0,0.190225]
[1719825451012,2.27270411,62938.0,62937.0,0.190225]
[1719825451252,1.57147077,62938.0,62937.0,0.190225]
[1719825451423,1.25369777,62938.0,62937.0,0.190225]
[1719825451628,1.57147077,62938.0,62937.0,0.190225]
[1719825451832,1.55333111,62938.0,62937.0,0.190225]
[1719825452008,1.57273111,62938.0,62937.0,0.190225]
[1719825452209,1.67463099,62938.0,62937.0,0.190225]
[1719825452595,1.57273111,62938.0,62937.0,0.190225]
[1719825453283,1.59013974,62938.0,62937.0,0.190225]
[1719825453489,1.67273111,62938.0,62937.0,0.190225]
[1719825454062,1.65333111,62938.0,62937.0,0.190225]
[1719825456538,1.67273111,62938.0,62937.0,0.190225]
[1719825456744,1.70030808,62938.0,62937.0,0.190225]
[1719825456987,1.68090808,62938.0,62937.0,0.190225]
[1719825460032,1.65333111,62938.0,62937.0,0.190225]
[1719825460474,1.17321913,62938.0,62937.0,0.190225]
[1719825460877,1.33555811,62938.0,62937.0,0.190225]
[1719825461633,1.32255811,62938.0,62937.0,0.190225]
[1719825461842,1.31155811,62938.0,62937.0,0.190225]
[1719825462069,1.32555811,62938.0,62937.0,0.190225]
[1719825465538,1.16321913,62938.0,62937.0,0.190225]
[1719825467485,1.18261913,62938.0,62937.0,0.190225]
[1719825468062,1.16321913,62938.0,62937.0,0.190225]
[1719825475326,1.16321913,62938.0,62937.0,0.140225]
[1719825476377,0.26578484,62938.0,62937.0,0.3859965]
[1719825476584,0.22119567,62938.0,62937.0,0.3860965]
[1719825476822,0.22119567,62938.0,62937.0,1.0216525]
[1719825477352,0.2059,62938.0,62937.0,1.0216525]
[1719825477503,0.1999,62938.0,62937.0,1.0216525]
[1719825477905,0.1999,62938.0,62937.0,1.0236525]
[1719825478103,0.24448917,62942.0,62941.0,0.0808]
[1719825478313,0.34448917,62942.0,62941.0,0.37366175]
[1719825479253,0.34448917,62942.0,62941.0,0.1847]
[1719825480165,0.82111717,62942.0,62941.0,0.1847]
[1719825480625,1.13986917,62942.0,62941.0,0.1887]
[1719825480826,1.62096015,62942.0,62941.0,0.007]
[1719825481053,1.64036015,62942.0,62941.0,0.007]
[1719825481244,1.30320815,62942.0,62941.0,0.007]
[1719825481380,1.30320815,62942.0,62941.0,0.1986]
[1719825481579,1.30220815,62942.0,62941.0,0.1956]
[1719825481786,1.30120815,62942.0,62941.0,0.1916]
[1719825482005,0.34548917,62942.0,62941.0,0.1946]
[1719825482213,0.34448917,62942.0,62941.0,0.1916]
[1719825482386,0.34448917,62942.0,62941.0,0.1926]
[1719825482585,0.50336517,62942.0,62941.0,0.1926]
[1719825483454,0.50436517,62942.0,62941.0,0.1956]
[1719825484010,0.50336517,62942.0,62941.0,0.1926]
[1719825484150,0.82111717,62942.0,62941.0,0.1926]
[1719825484719,0.82311717,62942.0,62941.0,0.1926]
[1719825487646,0.8354423,62942.0,62941.0,0.1926]
[1719825488098,0.83544236,62942.0,62941.0,0.1926]
[1719825488312,0.83544053,62942.0,62941.0,0.1926]
[1719825488905,0.83544053,62942.0,62941.0,0.1932]
[1719825489873,0.51768853,62942.0,62941.0,0.1932]
[1719825490206,0.51768853,62942.0,62941.0,0.2654]
[1719825490207,0.24648917,62942.0,62941.0,0.2654]
[1719825490362,0.24648917,62942.0,62941.0,0.424278]
[1719825490579,0.24648917,62942.0,62941.0,0.51880944]
[1719825490580,0.04658917,62942.0,62941.0,0.51880944]
[1719825490764,0.04658917,62942.0,62941.0,1.23366648]
[1719825490765,0.002,62942.0,62941.0,1.23366648]
[1719825490938,0.002,62942.0,62941.0,1.67208044]
[1719825491547,0.39104,62946.0,62945.0,0.669505]
[1719825491750,0.39104,62946.0,62945.0,0.85934547]
[1719825492313,0.59449517,62946.0,62945.0,0.1923]
[1719825492519,0.91222717,62946.0,62945.0,0.1923]
[1719825492693,0.59449517,62946.0,62945.0,0.1953]
[1719825492869,0.59549517,62946.0,62945.0,0.1953]
[1719825493076,0.59549517,62946.0,62945.0,0.2382978]
[1719825493414,0.59449517,62946.0,62945.0,0.2352978]
[1719825493625,0.59549517,62946.0,62945.0,0.2382978]
[1719825494727,0.59649517,62946.0,62945.0,0.2412978]
[1719825495155,0.59549517,62946.0,62945.0,0.2382978]
[1719825495335,0.59649517,62946.0,62945.0,0.2412978]
[1719825495972,0.91422717,62946.0,62945.0,0.2412978]
[1719825496622,0.91422717,62946.0,62945.0,0.2418978]
[1719825496747,0.91422717,62946.0,62945.0,0.2412978]
[1719825497797,0.91422717,62946.0,62945.0,0.2418978]
[1719825497957,0.551906,62946.0,62945.0,0.2418978]
[1719825498316,0.39304,62946.0,62945.0,0.2418978]
[1719825498876,0.59649517,62946.0,62945.0,0.2418978]
[1719825499469,0.551906,62946.0,62945.0,0.2418978]
[1719825500232,0.39304,62946.0,62945.0,0.2418978]
[1719825500813,0.39304,62946.0,62945.0,0.4007658]
[1719825501361,0.39304,62946.0,62945.0,1.1084398]
[1719825503157,0.39304,62946.0,62945.0,1.4261768]
[1719825503385,0.39304,62946.0,62945.0,1.6261768]
[1719825504842,0.39304,62946.0,62945.0,1.78851578]
[1719825505209,0.39304,62946.0,62945.0,1.94392661]
[1719825505637,0.39304,62946.0,62945.0,1.87172661]
[1719825505835,0.39304,62946.0,62945.0,1.94392661]
[1719825507029,0.39204,62946.0,62945.0,1.94092661]
[1719825507405,0.39304,62946.0,62945.0,1.94392661]
[1719825507607,0.39204,62946.0,62945.0,1.94092661]
[1719825507868,0.39204,62946.0,62945.0,1.95192661]
[1719825508158,0.39204,62946.0,62945.0,1.86872661]
[1719825508309,0.39204,62946.0,62945.0,1.2332398]
[1719825508517,0.39304,62946.0,62945.0,1.3194398]
[1719825509325,0.39304,62946.0,62945.0,1.3054398]
[1719825509326,0.39204,62946.0,62945.0,1.3054398]
[1719825509501,0.39104,62946.0,62945.0,1.3024398]
[1719825509739,0.39204,62946.0,62945.0,1.3164398]
[1719825510341,0.39204,62946.0,62945.0,1.32308929]
[1719825510342,0.39104,62946.0,62945.0,1.32308929]
[1719825510652,0.39104,62946.0,62945.0,1.13708929]
[1719825510653,0.39204,62946.0,62945.0,1.13708929]
[1719825510847,0.39304,62946.0,62945.0,1.07888929]
[1719825511049,0.39304,62946.0,62945.0,1.35108929]
[1719825511225,0.39204,62946.0,62945.0,1.33708929]
[1719825511430,0.39204,62946.0,62945.0,1.35108929]
[1719825511631,0.39304,62946.0,62945.0,1.66882629]
[1719825514527,0.39304,62946.0,62945.0,1.35108929]
[1719825514877,0.39304,62946.0,62945.0,1.66882629]
[1719825515078,0.39304,62946.0,62945.0,1.9865761]
[1719825520478,0.39304,62946.0,62945.0,1.31342827]
[1719825521399,0.39304,62946.0,62945.0,1.51342827]
[1719825524576,0.39304,62946.0,62945.0,1.83116527]
[1719825525823,0.39304,62946.0,62945.0,1.51342827]
[1719825526071,0.39304,62946.0,62945.0,0.74565229]
[1719825526277,0.91422717,62946.0,62945.0,0.028]
[1719825526505,1.40115917,62946.0,62945.0,0.028]
[1719825527421,1.40115917,62946.0,62945.0,0.014]
[1719825527422,1.40015917,62946.0,62945.0,0.014]
[1719825527783,1.40115917,62946.0,62945.0,0.03368]
[1719825527980,1.40115917,62946.0,62945.0,0.025]
[1719825528183,1.40015917,62946.0,62945.0,0.011]
[1719825528591,1.40115917,62946.0,62945.0,0.021]
[1719825529218,1.40015917,62946.0,62945.0,0.011]
[1719825530209,1.40115917,62946.0,62945.0,0.0196]
[1719825530423,1.40115917,62946.0,62945.0,0.019]
[1719825532589,1.40115917,62946.0,62945.0,0.0196]
[1719825535144,0.39304,62946.0,62945.0,0.10548]
[1719825535744,0.39304,62946.0,62945.0,0.264348]
[1719825537357,0.39304,62946.0,62945.0,0.582085]
[1719825537940,0.39304,62946.0,62945.0,0.654285]
[1719825538270,0.39304,62946.0,62945.0,0.336548]
[1719825541168,0.39304,62946.0,62945.0,0.654285]
[1719825542688,0.39304,62946.0,62945.0,0.336548]
[1719825545361,0.39304,62946.0,62945.0,0.654285]
[1719825546135,0.39304,62946.0,62945.0,0.854285]
[1719825546672,0.39304,62946.0,62945.0,0.654285]
[1719825546948,0.39304,62946.0,62945.0,0.972022]
[1719825547899,0.39304,62946.0,62945.0,0.99294828]
[1719825548504,0.39304,62946.0,62945.0,0.67521128]
[1719825548726,0.39304,62946.0,62945.0,0.35747428]
[1719825549546,0.39304,62946.0,62945.0,0.04910628]
[1719825549750,0.551906,62946.0,62945.0,0.02818]
[1719825549950,0.39304,62946.0,62945.0,0.02818]
[1719825551279,0.551906,62946.0,62945.0,0.02818]
[1719825553211,1.23195917,62946.0,62945.0,0.02818]
[1719825553452,1.26363384,62946.0,62945.0,0.019]
[1719825553601,1.92126584,62946.0,62945.0,0.019]
[1719825553931,1.92127082,62946.0,62945.0,0.019]
[1719825554136,1.94067082,62946.0,62945.0,0.019]
[1719825554633,1.92127082,62946.0,62945.0,0.019]
[1719825554794,1.94067082,62946.0,62945.0,0.019]
[1719825555825,1.92839117,62946.0,62945.0,0.019]
[1719825556022,1.94068795,62946.0,62945.0,0.019]
[1719825557700,1.90899117,62946.0,62945.0,0.019]
[1719825557898,1.9212992,62946.0,62945.0,0.019]
[1719825558449,1.92130009,62946.0,62945.0,0.019]
[1719825560544,2.01290009,62946.0,62945.0,0.019]
[1719825560759,2.00059117,62946.0,62945.0,0.019]
[1719825560873,2.012885,62946.0,62945.0,0.019]
[1719825561098,2.00059117,62946.0,62945.0,0.019]
[1719825561299,2.17522996,62946.0,62945.0,0.019]
[1719825562145,2.77195941,62946.0,62945.0,0.019]
[1719825562986,2.77095941,62946.0,62945.0,0.011]
[1719825563535,1.288805,62938.0,62937.0,0.001024]
[1719825563760,1.30111008,62938.0,62937.0,0.001024]
[1719825563958,1.50101008,62938.0,62937.0,0.001024]
[1719825564362,1.50106926,62938.0,62937.0,0.001024]
[1719825564999,1.50206926,62938.0,62937.0,0.002024]
[1719825565600,1.48266926,62938.0,62937.0,0.002024]
[1719825566030,1.50206926,62938.0,62937.0,0.002024]
[1719825566809,1.48266926,62938.0,62937.0,0.002024]
[1719825567012,1.37005843,62938.0,62937.0,0.002024]
[1719825567391,1.35769417,62938.0,62937.0,0.002024]
[1719825567590,1.37007068,62938.0,62937.0,0.002024]
[1719825567937,1.35769417,62938.0,62937.0,0.002024]
[1719825568078,1.3700706,62938.0,62937.0,0.002024]
[1719825569901,1.35769417,62938.0,62937.0,0.002024]
[1719825572493,1.3700462,62938.0,62937.0,0.002024]
[1719825572818,1.3894462,62938.0,62937.0,0.002024]
[1719825573821,1.38940869,62938.0,62937.0,0.002024]
[1719825574660,1.52620869,62938.0,62937.0,0.002024]
[1719825577077,1.51389417,62938.0,62937.0,0.002024]
[1719825577278,1.52621143,62938.0,62937.0,0.002024]
[1719825577439,1.51389417,62938.0,62937.0,0.002024]
[1719825577666,1.52620381,62938.0,62937.0,0.002024]
[1719825579083,1.68604419,62938.0,62937.0,0.002024]
[1719825579296,1.52620381,62938.0,62937.0,0.002024]
[1719825580122,1.51389417,62938.0,62937.0,0.002024]
[1719825580316,1.52620623,62938.0,62937.0,0.002024]
[1719825582659,2.00701821,62938.0,62937.0,0.002024]
[1719825583383,2.00702847,62938.0,62937.0,0.002024]
[1719825584924,2.26936218,62938.0,62937.0,0.002024]
[1719825586353,2.10702847,62938.0,62937.0,0.002024]
[1719825586561,2.09470615,62938.0,62937.0,0.002024]
[1719825586801,2.10705927,62938.0,62937.0,0.002024]
[1719825587224,2.12413184,62938.0,62937.0,0.002024]
[1719825587428,2.1316062,62938.0,62937.0,0.002024]
[1719825587599,2.29393991,62938.0,62937.0,0.002024]
[1719825587800,2.1316062,62938.0,62937.0,0.002024]
[1719825589167,2.2038062,62938.0,62937.0,0.002024]
[1719825589728,2.20358948,62938.0,62937.0,0.002024]
[1719825590157,2.20359157,62938.0,62937.0,0.002024]
[1719825590358,2.69369828,62938.0,62937.0,0.002024]
[1719825591242,2.69369828,62938.0,62937.0,0.001024]
[1719825591446,2.69269828,62938.0,62937.0,0.001024]
[1719825591654,2.70069828,62938.0,62937.0,0.002024]
[1719825592683,2.68048722,62938.0,62937.0,0.003024]
[1719825593026,2.71007456,62938.0,62937.0,0.003024]
[1719825593560,2.63787456,62938.0,62937.0,0.003024]
[1719825593784,2.71007456,62938.0,62937.0,0.003024]
[1719825595969,2.71027147,62938.0,62937.0,0.003024]
[1719825599033,2.95124974,62938.0,62937.0,0.003024]
[1719825599299,2.96183288,62938.0,62937.0,0.003024]
[1719825599431,2.97421605,62938.0,62937.0,0.003024]
[1719825600154,2.96521605,62938.0,62937.0,0.002024]
[1719825600360,2.95721605,62938.0,62937.0,0.001024]
[1719825600583,3.11311028,62938.0,62937.0,0.002024]
[1719825600750,3.12711028,62938.0,62937.0,0.003024]
[1719825601776,3.1275295,62938.0,62937.0,0.003024]
[1719825602238,3.09733715,62938.0,62937.0,0.003024]
[1719825602471,2.98564243,62938.0,62937.0,0.003024]
[1719825603219,3.12751409,62938.0,62937.0,0.003024]
[1719825603418,2.98564243,62938.0,62937.0,0.003024]
[1719825604923,2.98552336,62938.0,62937.0,0.003024]
[1719825605979,2.23505036,62938.0,62937.0,0.003024]
[1719825606140,2.44565036,62938.0,62937.0,0.003024]
[1719825606589,2.96342336,62938.0,62937.0,0.003024]
[1719825606791,2.98642336,62938.0,62937.0,0.003024]
[1719825608094,2.98639234,62938.0,62937.0,0.003024]
[1719825608302,3.18629234,62938.0,62937.0,0.003024]
[1719825608511,3.12823498,62938.0,62937.0,0.003024]
[1719825609331,3.32813498,62938.0,62937.0,0.003024]
[1719825610550,3.61549016,62938.0,62937.0,0.003024]
[1719825611157,3.6024751,62938.0,62937.0,0.003024]
[1719825611359,3.6148317,62938.0,62937.0,0.003024]
[1719825611959,3.6148317,62938.0,62937.0,1e-06]
[1719825612163,3.6148317,62938.0,62937.0,0.000101]
[1719825613102,3.6008317,62938.0,62937.0,0.000101]
[1719825613311,3.6008317,62938.0,62937.0,0.0001]
[1719825613472,3.6148317,62938.0,62937.0,0.0001]
[1719825613929,3.63610005,62938.0,62937.0,0.0001]
[1719825614358,3.63608544,62938.0,62937.0,0.0001]
[1719825614528,3.59510725,62938.0,62937.0,0.0001]
[1719825614753,3.63608115,62938.0,62937.0,0.0001]
[1719825614878,3.63586824,62938.0,62937.0,0.0001]
[1719825616090,3.42362169,62938.0,62937.0,0.0001]
[1719825616317,3.58847638,62938.0,62937.0,0.0001]
[1719825616508,3.73024779,62938.0,62937.0,0.0001]
[1719825616961,3.53034779,62938.0,62937.0,0.0001]
[1719825617181,3.58847638,62938.0,62937.0,0.0001]
[1719825617440,3.49530247,62938.0,62937.0,0.0001]
[1719825617683,3.38862299,62938.0,62937.0,0.0001]
[1719825617885,3.58852299,62938.0,62937.0,0.0001]
[1719825618306,3.07853382,62938.0,62937.0,0.0001]
[1719825618514,2.70944999,62938.0,62937.0,0.0001]
[1719825619346,2.63148418,62938.0,62937.0,0.0001]
[1719825619679,2.64548418,62938.0,62937.0,0.0001]
[1719825620201,2.63148418,62938.0,62937.0,0.0001]
[1719825620704,2.78398418,62938.0,62937.0,0.0001]
[1719825621062,2.89480388,62938.0,62937.0,0.0001]
[1719825621267,3.21201032,62938.0,62937.0,0.0001]
[1719825621439,3.27010388,62938.0,62937.0,0.0001]
[1719825621641,3.25610388,62938.0,62937.0,0.0001]
[1719825621865,3.27010388,62938.0,62937.0,0.0001]
[1719825622065,3.25610388,62938.0,62937.0,0.0001]
[1719825622272,3.24210388,62938.0,62937.0,0.0001]
[1719825622478,3.25610388,62938.0,62937.0,0.0001]
[1719825622679,3.27010388,62938.0,62937.0,0.0001]
[1719825623483,3.25610388,62938.0,62937.0,0.0001]
[1719825623705,3.57387688,62938.0,62937.0,0.0001]
[1719825623840,3.49530247,62938.0,62937.0,0.0001]
[1719825624040,3.58738005,62938.0,62937.0,0.0001]
[1719825624446,3.57338018,62938.0,62937.0,0.0001]
[1719825624888,3.58738018,62938.0,62937.0,0.0001]